bitfinex/quotes_SOLUSD_20250403
["timestamp","ask_amount","ask_price","bid_price","bid_amount"]
[1743684258959,0.5,113.82,113.77,26.0]
[1743684259284,0.5,113.85,113.78,50.15534154]
[1743684259477,0.5,113.85,113.78,0.14216157]
[1743684259681,0.5,113.85,113.79,26.0]
[1743684260161,0.5,113.81,113.8,8.7873]
[1743684260363,0.5,113.82,113.8,8.7873]
[1743684260560,0.5,113.8,113.78,8.7882]
[1743684260759,50.65534154,113.79,113.77,8.7896]
[1743684260975,50.15534154,113.82,113.71,0.14216157]
[1743684260976,0.5,113.75,113.71,8.7943]
[1743684261188,0.5,113.73,113.71,8.7943]
[1743684261568,0.5,113.76,113.71,8.7943]
[1743684261881,0.563,113.86,113.74,26.0]
[1743684261882,0.5,113.77,113.74,26.0]
[1743684262181,0.5,113.83,113.79,26.0]
[1743684262367,0.563,113.86,113.81,50.15534154]
[1743684262684,0.5,113.84,113.81,26.0]
[1743684262865,50.15534154,113.84,113.8,26.0]
[1743684263070,0.563,113.86,113.81,50.15534154]
[1743684263071,0.063,113.86,113.81,50.15534154]
[1743684263376,50.65534154,113.84,113.8,26.0]
[1743684263582,0.5,113.83,113.8,26.0]
[1743684264086,50.15534154,113.84,113.81,8.7865]
[1743684264282,50.15534154,113.82,113.77,328.8]
[1743684264584,0.5,113.8,113.78,8.7888]
[1743684264766,0.5,113.81,113.78,8.7888]
[1743684264965,0.5,113.83,113.78,80.91634154]
[1743684265284,50.65534154,113.83,113.78,30.761]
[1743684265475,0.563,113.86,113.81,50.15534154]
[1743684265676,0.5,113.85,113.81,76.15534154]
[1743684265876,0.563,113.86,113.81,76.15534154]
[1743684266089,0.563,113.86,113.82,8.7858]
[1743684266279,0.5,113.91,113.85,76.15534154]
[1743684266472,50.15534154,113.89,113.85,26.0]
[1743684266785,0.5,113.88,113.82,30.7503]
[1743684266960,50.15534154,113.86,113.82,30.7503]
[1743684267167,50.15534154,113.85,113.82,30.7503]
[1743684267378,0.5,113.86,113.82,30.7503]
[1743684267784,0.5,113.91,113.87,26.0]
[1743684268092,50.65534154,114.0,113.87,26.0]
[1743684268093,50.15534154,113.94,113.88,30.734]
[1743684268272,0.5,113.97,113.92,50.15534154]
[1743684268471,50.65534154,113.95,113.91,26.0]
[1743684268672,50.15534154,113.95,113.91,26.0]
[1743684268874,0.5,113.99,113.92,76.15534154]
[1743684269106,0.5,113.98,113.94,50.15534154]
[1743684269396,50.65534154,113.98,113.93,50.15534154]
[1743684269579,0.5,114.0,113.95,50.15534154]
[1743684270094,0.5,114.04,114.0,30.7017]
[1743684270411,0.063,114.05,114.0,30.7017]
[1743684270412,50.65534154,114.03,114.0,8.7719]
[1743684270689,0.5,114.02,114.0,8.7719]
[1743684271095,0.063,114.05,114.0,8.7719]
[1743684271096,0.5,114.04,114.0,8.7719]
[1743684271401,0.5,114.02,114.0,8.7719]
[1743684271567,0.563,114.05,114.01,50.15534154]
[1743684271768,0.063,114.05,114.01,50.15534154]
[1743684272282,0.063,114.05,114.03,50.15534154]
[1743684272488,0.063,114.05,114.04,26.0]
[1743684272786,0.0001,114.05,114.04,50.15534154]
[1743684272986,0.5,114.13,114.07,26.0]
[1743684273192,0.5,114.12,114.09,50.15534154]
[1743684273402,0.5,114.14,114.09,50.15534154]
[1743684273613,0.5,114.12,114.07,26.0]
[1743684273777,0.5,114.15,114.1,50.15534154]
[1743684273977,0.5,114.16,114.11,50.15534154]
[1743684274276,0.5,114.14,114.1,80.83014154]
[1743684274480,0.5,114.12,114.1,8.7642]
[1743684275101,0.5,114.14,114.1,8.7642]
[1743684275270,0.5,114.12,114.1,8.7642]
[1743684275472,0.5,114.12,113.97,372.4496]
[1743684275686,0.5,114.08,114.05,8.768]
[1743684275897,0.5,114.1,114.05,80.84354154]
[1743684276083,0.5,114.08,114.05,80.84354154]
[1743684276391,0.5,114.08,114.05,30.6882]
[1743684276607,0.5,114.11,114.05,30.6882]
[1743684276787,0.5,114.11,114.07,50.15534154]
[1743684277108,0.5,114.09,114.05,30.6882]
[1743684277405,0.5,114.04,113.99,58.92794154]
[1743684277592,50.15534154,114.03,113.99,8.7726]
[1743684277797,0.5,114.02,113.99,8.7726]
[1743684278190,50.65534154,114.01,113.98,62.5743445]
[1743684278388,0.5,114.0,113.98,54.5885445]
[1743684278791,0.5,113.99,113.98,45.8153445]
[1743684279117,0.5,113.98,113.97,8.7737]
[1743684279475,0.14216157,114.11,113.97,146.67124154]
[1743684279687,50.15534154,114.05,114.0,26.0]
[1743684279883,18.79181043,114.11,114.0,76.15534154]
[1743684280077,50.15534154,114.05,114.0,76.15534154]
[1743684280305,50.15534154,114.02,113.98,8.7734]
[1743684280479,50.15534154,114.06,113.98,8.7734]
[1743684280677,50.15534154,114.05,113.99,50.15534154]
[1743684280876,18.933972,114.11,114.01,50.15534154]
[1743684281107,18.79181043,114.11,114.01,26.0]
[1743684281411,50.15534154,114.05,114.01,26.0]
[1743684281575,50.15534154,114.06,114.0,50.15534154]
[1743684281777,50.15534154,114.05,114.01,26.0]
[1743684281980,50.15534154,114.05,113.98,8.7734]
[1743684281981,50.15534154,114.02,113.98,8.7734]
[1743684282177,27.55531043,114.11,113.98,26.0]
[1743684282383,27.55531043,114.11,114.01,50.15534154]
[1743684282583,50.15534154,114.05,113.98,26.0]
[1743684282806,50.15534154,114.05,113.99,50.15534154]
[1743684283094,50.15534154,114.06,114.0,50.15534154]
[1743684283292,50.15534154,114.05,113.98,100.5743]
[1743684283496,50.15534154,114.05,113.99,50.15534154]
[1743684283691,50.15534154,114.12,114.01,50.15534154]
[1743684283896,50.15534154,114.06,114.01,50.15534154]
[1743684284086,50.15534154,114.07,114.01,50.15534154]
[1743684284600,50.15534154,114.06,114.0,50.15534154]
[1743684285202,50.15534154,114.05,113.99,50.15534154]
[1743684285412,0.063,114.05,114.02,50.15534154]
[1743684285643,18.85481043,114.14,114.04,76.15534154]
[1743684285917,50.15534154,114.12,114.06,50.15534154]
[1743684286222,50.15534154,114.11,114.04,26.0]
[1743684286521,50.15534154,114.05,114.01,30.699]
[1743684286690,50.15534154,114.02,113.98,0.03]
[1743684286890,50.15534154,114.06,113.98,8.8032]
[1743684286891,50.15534154,114.0,113.98,8.8032]
[1743684287084,50.15534154,114.02,113.98,8.8032]
[1743684287294,18.64964886,114.05,113.98,0.03]
[1743684287494,19.07613357,114.11,113.99,50.15534154]
[1743684287704,50.15534154,114.04,113.98,26.03]
[1743684287890,50.15534154,114.05,113.99,50.15534154]
[1743684288292,18.64964886,114.05,113.98,26.03]
[1743684288508,50.15534154,114.01,113.98,0.03]
[1743684288704,18.933972,114.05,113.98,0.03]
[1743684289082,50.15534154,114.0,113.98,0.03]
[1743684289500,50.15534154,114.06,113.98,0.03]
[1743684289707,50.15534154,114.02,113.98,0.03]
[1743684289914,18.64964886,114.05,113.98,0.03]
[1743684290100,50.15534154,114.01,113.98,0.03]
[1743684290301,50.15534154,114.06,113.98,0.03]
[1743684290501,50.15534154,114.01,113.98,26.03]
[1743684290698,50.15534154,114.02,113.98,26.03]
[1743684290900,18.64964886,114.05,113.98,26.03]
[1743684291216,50.15534154,114.03,113.98,26.03]
[1743684291427,50.15534154,114.03,113.99,8.7726]
[1743684291819,50.15534154,114.01,113.99,30.7043]
[1743684292340,100.31068308,114.0,113.98,0.03]
[1743684292508,50.15534154,113.99,113.98,0.03]
[1743684293110,50.15534154,113.99,113.98,8.8034]
[1743684293512,19.07613357,114.05,113.98,0.03]
[1743684293834,50.15534154,114.0,113.98,26.03]
[1743684294044,50.15534154,114.06,113.98,26.03]
[1743684294341,50.15534154,114.04,113.99,26.0]
[1743684294504,50.15534154,114.03,113.99,26.0]
[1743684294712,50.15534154,114.02,113.99,26.0]
[1743684295324,50.15534154,114.03,113.99,26.0]
[1743684295510,50.15534154,114.04,114.0,30.7017]
[1743684295715,50.15534154,114.05,114.0,80.85704154]
[1743684295926,50.15534154,114.03,114.0,8.7719]
[1743684296128,50.15534154,114.06,113.98,0.03]
[1743684296129,50.15534154,114.01,113.98,0.03]
[1743684296314,50.15534154,113.99,113.98,0.03]
[1743684297932,15.24942314,114.04,113.98,0.03]
[1743684298109,50.15534154,113.99,113.98,0.03]
[1743684299413,68.94715197,113.99,113.98,0.03]
[1743684299619,50.15534154,113.92,113.88,8.7811]
[1743684299836,50.15534154,113.89,113.88,8.7811]
[1743684300027,50.15534154,113.94,113.88,8.7811]
[1743684300220,50.15534154,114.0,113.88,30.734]
[1743684300424,50.15534154,113.95,113.88,30.734]
[1743684300609,50.15534154,113.92,113.88,30.734]
[1743684301141,50.15534154,113.89,113.88,8.7811]
[1743684301535,50.15534154,113.89,113.86,0.03]
[1743684301736,8.7726,113.99,113.9,26.0]
[1743684301942,18.64964886,113.98,113.9,26.0]
[1743684302236,50.15534154,113.95,113.9,26.0]
[1743684302536,50.15534154,113.93,113.88,26.0]
[1743684302719,50.15534154,113.92,113.88,26.0]
[1743684302910,58.92744154,114.0,113.88,26.0]
[1743684303113,63.59651467,114.1,113.88,26.0]
[1743684303114,0.5,114.09,113.92,26.14216157]
[1743684303330,8.7687,114.05,113.93,50.15534154]
[1743684303526,8.7693,114.04,113.94,50.15534154]
[1743684303845,27.56001043,114.05,113.93,30.7205]
[1743684304142,50.15534154,113.96,113.93,8.7773]
[1743684304320,50.15534154,113.95,113.93,8.7773]
[1743684304517,30.6884,114.05,113.93,8.7773]
[1743684304518,8.7673,114.06,113.97,26.0]
[1743684304836,50.15534154,114.06,113.97,26.0]
[1743684305036,50.15534154,114.03,113.98,50.15534154]
[1743684305340,50.15534154,114.06,114.01,50.15534154]
[1743684305538,50.15534154,114.04,113.98,30.707]
[1743684305741,0.14216157,114.11,114.01,76.15534154]
[1743684306230,50.15534154,114.06,114.01,76.15534154]
[1743684306430,50.15534154,114.07,114.01,76.15534154]
[1743684306627,58.91834154,114.12,114.02,50.15534154]
[1743684306628,58.91844154,114.12,114.02,50.15534154]
[1743684306825,50.15534154,114.06,114.01,26.0]
[1743684307027,50.15534154,114.03,113.98,30.707]
[1743684307227,50.15534154,113.99,113.92,8.92016157]
[1743684307527,0.42648471,114.04,113.94,50.15534154]
[1743684307857,0.28432314,114.08,113.98,50.15534154]
[1743684308021,50.15534154,114.05,113.99,50.15534154]
[1743684308355,50.15534154,114.06,113.97,26.0]
[1743684308524,18.64964886,114.05,113.93,74.6058]
[1743684308727,0.063,113.98,113.97,26.0]
[1743684308927,50.15534154,114.06,113.97,26.0]
[1743684308928,50.15534154,114.06,113.97,76.15534154]
[1743684309240,50.15534154,114.06,113.93,30.7193]
[1743684309241,50.15534154,113.99,113.93,30.7193]
[1743684309427,50.15534154,114.0,113.93,8.7773]
[1743684309741,50.15534154,113.98,113.93,8.7773]
[1743684309931,50.15534154,113.96,113.93,8.7773]
[1743684310246,18.64964886,114.02,113.93,58.93264154]
[1743684310556,50.15534154,113.95,113.92,8.7777]
[1743684310924,50.15534154,113.95,113.91,8.0848]
[1743684310925,50.15534154,113.95,113.9,50.15534154]
[1743684311130,18.64964886,113.99,113.91,30.7259]
[1743684311339,50.15534154,113.95,113.91,8.7788]
[1743684311539,8.7703,114.02,113.91,8.7788]
[1743684311727,50.15534154,113.95,113.91,30.7259]
[1743684311930,50.15534154,113.94,113.91,8.7788]
[1743684312139,50.15534154,113.95,113.91,8.7788]
[1743684312335,50.15534154,113.94,113.91,8.7788]
[1743684312540,50.15534154,113.94,113.88,0.03]
[1743684312942,18.64964886,113.92,113.88,0.03]
[1743684313124,0.28432314,113.95,113.88,8.8111]
[1743684313447,18.64964886,113.98,113.88,58.96644154]
[1743684313645,50.15534154,113.93,113.9,8.7796]
[1743684313823,18.64964886,113.9,113.88,0.03]
[1743684314022,100.73716779,113.89,113.88,0.03]
[1743684314240,68.8049904,113.89,113.88,0.03]
[1743684314446,118.96033194,113.89,113.88,0.03]
[1743684314649,19.07613357,113.89,113.88,0.03]
[1743684314850,118.96033194,113.89,113.88,0.03]
[1743684315732,50.15534154,113.89,113.88,0.03]
[1743684315933,0.5,113.97,113.88,0.03]
[1743684316138,18.64964886,113.93,113.88,0.03]
[1743684316335,50.15534154,113.89,113.88,0.03]
[1743684316752,69.23147511,113.89,113.88,0.03]
[1743684316950,68.8049904,113.89,113.88,0.03]
[1743684317127,50.15534154,113.89,113.88,0.03]
[1743684317332,18.64964886,113.93,113.88,0.03]
[1743684317533,50.15534154,113.93,113.88,50.18534154]
[1743684317739,50.15534154,113.94,113.89,58.93574154]
[1743684318053,50.15534154,113.9,113.88,0.03]
[1743684318238,50.15534154,113.89,113.88,0.03]
[1743684318442,118.96033194,113.89,113.88,0.03]
[1743684318643,50.15534154,113.89,113.88,0.03]
[1743684319241,68.8049904,113.89,113.88,0.03]
[1743684319447,50.15534154,113.89,113.88,0.03]
[1743684319646,58.93574154,113.89,113.88,0.03]
[1743684320243,0.14216157,113.78,113.76,0.03]
[1743684320563,0.42648471,113.76,113.66,0.03]
[1743684320858,50.15534154,113.69,113.66,0.03]
[1743684321056,0.28432314,113.74,113.66,0.03]
[1743684321576,18.64964886,113.75,113.66,58.98324154]
[1743684321744,50.15534154,113.72,113.66,80.97864154]
[1743684322058,27.44104886,113.75,113.66,8.8279]
[1743684322257,50.15534154,113.71,113.66,58.98324154]
[1743684322471,50.15534154,113.72,113.66,58.98324154]
[1743684322655,50.15534154,113.71,113.66,58.98324154]
[1743684322962,50.15534154,113.71,113.66,8.8279]
[1743684323179,50.15534154,113.69,113.66,0.03]
[1743684323359,50.15534154,113.68,113.66,0.03]
[1743684323540,0.42648471,113.74,113.66,0.03]
[1743684323747,50.15534154,113.71,113.66,8.8281]
[1743684323945,50.15534154,113.7,113.66,8.8281]
[1743684324456,50.15534154,113.72,113.69,26.0]
[1743684324639,50.15534154,113.76,113.68,50.15534154]
[1743684324983,8.7865,113.81,113.71,50.15534154]
[1743684325136,50.15534154,113.76,113.72,26.0]
[1743684325337,50.15534154,113.74,113.7,1.7659]
[1743684325570,50.15534154,113.73,113.7,1.7659]
[1743684325743,50.15534154,113.76,113.71,8.7943]
[1743684325937,0.14216157,113.8,113.71,8.7943]
[1743684326137,50.15534154,113.76,113.71,58.94964154]
[1743684326338,50.15534154,113.82,113.73,50.15534154]
[1743684326533,50.15534154,113.82,113.74,50.15534154]
[1743684326534,50.15534154,113.79,113.74,50.15534154]
[1743684326848,8.92586157,113.85,113.75,50.15534154]
[1743684327053,8.7837,113.85,113.76,50.15534154]
[1743684327449,50.15534154,113.83,113.75,19.07613357]
[1743684327754,50.15534154,113.88,113.79,30.7583]
[1743684328073,50.15534154,113.86,113.81,50.15534154]
[1743684328677,8.779,113.91,113.82,50.15534154]
[1743684328972,22.08576157,113.93,113.83,50.15534154]
[1743684328973,50.15534154,113.88,113.83,50.15534154]
[1743684329145,50.15534154,113.85,113.82,26.0]
[1743684329337,50.15534154,113.84,113.82,26.0]
[1743684329539,18.64964886,113.91,113.81,50.15534154]
[1743684329540,50.15534154,113.86,113.81,50.15534154]
[1743684329846,18.64964886,113.91,113.81,8.7865]
[1743684329847,50.15534154,113.85,113.81,8.7865]
[1743684330242,50.15534154,113.88,113.81,8.7865]
[1743684330560,50.15534154,113.82,113.74,7.778]
[1743684330742,50.15534154,113.78,113.76,8.7904]
[1743684331062,50.15534154,113.77,113.71,21.9854]
[1743684331258,50.15534154,113.76,113.71,21.9854]
[1743684331454,50.15534154,113.75,113.71,72.14074154]
[1743684331637,18.64964886,113.81,113.7,30.7826]
[1743684331842,50.15534154,113.76,113.72,8.7935]
[1743684332273,50.15534154,113.75,113.72,8.7935]
[1743684332565,50.15534154,113.77,113.75,0.03]
[1743684332766,50.15534154,113.78,113.75,0.03]
[1743684333340,100.31068308,113.76,113.75,0.03]
[1743684333758,50.15534154,113.76,113.75,0.03]
[1743684334167,100.31068308,113.76,113.75,0.03]
[1743684334562,50.15534154,113.76,113.75,0.03]
[1743684335647,100.31068308,113.76,113.75,0.03]
[1743684336344,118.96033194,113.76,113.75,0.03]
[1743684336970,100.31068308,113.76,113.75,0.03]
[1743684337363,109.10108308,113.76,113.75,0.03]
[1743684337562,127.75073194,113.76,113.75,0.03]
[1743684337773,18.64964886,113.67,113.66,0.03]
[1743684338071,0.5,113.84,113.68,0.14216157]
[1743684338266,50.15534154,113.76,113.67,16.8383]
[1743684338566,18.64964886,113.75,113.67,10.4956]
[1743684338783,50.15534154,113.76,113.68,0.14216157]
[1743684338986,50.29750311,113.82,113.7,50.29750311]
[1743684339188,50.15534154,113.82,113.76,26.0]
[1743684339365,50.15534154,113.81,113.77,8.7896]
[1743684339692,50.15534154,113.82,113.77,30.7637]
[1743684339977,50.15534154,113.81,113.77,30.7637]
[1743684340184,50.15534154,113.83,113.78,50.15534154]
[1743684340387,50.15534154,113.85,113.79,50.43966468]
[1743684340690,50.15534154,113.85,113.8,26.0]
[1743684340856,50.15534154,113.86,113.81,50.15534154]
[1743684341047,8.7799,113.9,113.81,50.15534154]
[1743684341253,8.7799,113.9,113.82,8.7858]
[1743684341486,50.15534154,113.86,113.82,8.7858]
[1743684341642,50.15534154,113.86,113.81,21.9663]
[1743684341643,50.15534154,113.83,113.79,8.7881]
[1743684341846,50.15534154,113.8,113.77,1.7548]
[1743684342055,18.64964886,113.87,113.77,10.5442]
[1743684342375,50.15534154,113.88,113.77,82.67364154]
[1743684342582,50.15534154,113.88,113.79,50.15534154]
[1743684342792,50.15534154,113.84,113.78,0.42648471]
[1743684342960,50.15534154,113.81,113.77,10.5442]
[1743684343164,50.15534154,113.79,113.77,10.5442]
[1743684343891,50.15534154,113.78,113.77,10.5442]
[1743684344077,50.15534154,113.78,113.75,337.7105]
[1743684344380,50.15534154,113.79,113.75,359.6885]
[1743684344576,50.15534154,113.78,113.75,337.7105]
[1743684344772,50.15534154,113.82,113.75,337.7105]
[1743684345089,94.10294154,113.94,113.81,26.0]
[1743684345253,50.15534154,113.83,113.8,8.7873]
[1743684345865,50.15534154,113.84,113.8,8.7873]
[1743684346065,50.15534154,113.88,113.8,80.91094154]
[1743684346267,50.15534154,113.84,113.8,80.91094154]
[1743684346478,77.5862904,113.88,113.8,8.7873]
[1743684346694,50.15534154,113.82,113.8,8.7873]
[1743684346977,8.7806,113.89,113.8,58.94264154]
[1743684347155,8.8428,113.9,113.81,50.15534154]
[1743684347360,50.15534154,113.86,113.82,8.7858]
[1743684347554,0.063,113.9,113.82,8.7858]
[1743684347754,50.15534154,113.85,113.82,8.7858]
[1743684348176,50.15534154,113.84,113.82,8.7858]
[1743684348377,50.15534154,113.88,113.82,8.7858]
[1743684348582,50.15534154,113.85,113.82,8.7858]
[1743684348982,50.15534154,113.88,113.82,8.7858]
[1743684349282,50.15534154,113.88,113.84,8.7842]
[1743684349490,0.063,113.9,113.84,8.7842]
[1743684349669,50.15534154,113.88,113.84,30.7448]
[1743684349863,0.063,113.9,113.84,30.7448]
[1743684350063,50.21834154,113.9,113.85,50.15534154]
[1743684350264,0.063,113.9,113.89,50.15534154]
[1743684350573,0.0001,113.9,113.89,50.29750311]
[1743684350775,0.063,113.94,113.9,0.14216157]
[1743684350967,0.063,113.94,113.91,50.15534154]
[1743684351475,0.063,113.94,113.93,8.7773]
[1743684352868,0.063,113.94,113.93,58.93264154]
[1743684353172,0.063,113.94,113.93,8.7773]
[1743684353486,0.0001,113.94,113.93,58.93264154]
[1743684353666,0.0001,113.94,113.93,59.07480311]
[1743684354064,0.063,114.02,113.96,26.0]
[1743684354283,0.063,114.02,113.96,76.15534154]
[1743684354491,0.063,114.02,113.96,26.0]
[1743684354783,0.063,114.02,113.96,76.15534154]
[1743684354975,0.063,114.02,113.96,26.0]
[1743684355171,0.063,114.02,113.93,93.68313357]
[1743684355172,0.063,114.02,113.97,26.0]
[1743684355387,0.063,114.02,113.97,76.15534154]
[1743684355687,0.063,114.02,113.99,50.15534154]
[1743684355863,0.063,114.02,114.0,50.15534154]
[1743684356279,0.063,114.02,113.98,30.707]
[1743684356685,0.063,114.02,113.99,50.15534154]
[1743684356984,0.063,114.02,114.0,50.15534154]
[1743684357185,0.063,114.02,114.01,76.15534154]
[1743684357365,0.063,114.02,114.01,26.0]
[1743684357567,0.063,114.02,114.01,84.92644154]
[1743684358379,0.063,114.02,114.01,34.7711]
[1743684358898,0.063,114.02,114.01,8.7711]
[1743684359387,0.063,114.02,114.01,58.92644154]
[1743684359583,0.063,114.06,114.01,58.92644154]
[1743684359584,0.063,114.06,114.04,26.0]
[1743684359787,0.0001,114.06,114.05,26.14216157]
[1743684359966,0.0001,114.06,114.05,95.23147511]
[1743684360165,0.0001,114.06,114.05,45.07613357]
[1743684360371,0.0001,114.06,114.05,26.0]
[1743684360679,0.0001,114.06,114.03,328.4]
[1743684361275,0.0001,114.06,114.04,50.15534154]
[1743684361482,0.0001,114.06,114.04,8.7688]
[1743684361689,0.0001,114.06,114.05,76.29750311]
[1743684361894,0.0001,114.06,114.05,26.0]
[1743684362081,0.0001,114.06,114.04,8.7688]
[1743684362286,100.31078308,114.06,113.99,21.9312]
[1743684362589,0.0001,114.06,114.0,50.15534154]
[1743684362782,0.0001,114.06,114.02,50.15534154]
[1743684362983,0.0001,114.06,114.04,50.15534154]
[1743684363197,0.0001,114.06,114.0,68.94715197]
[1743684363494,0.0001,114.06,114.04,8.7688]
[1743684363791,0.0001,114.06,114.04,58.92414154]
[1743684364001,0.0001,114.06,114.05,50.29750311]
[1743684364179,0.0001,114.06,114.05,69.23147511]
[1743684364493,50.21834154,114.14,114.08,26.0]
[1743684364712,50.21834154,114.14,114.07,0.14216157]
[1743684364713,0.063,114.14,114.09,19.07613357]
[1743684364875,0.063,114.14,114.12,26.0]
[1743684365188,0.063,114.14,114.1,76.15534154]
[1743684365392,0.063,114.14,114.13,76.15534154]
[1743684365689,0.063,114.14,114.13,85.05940311]
[1743684365891,0.063,114.14,114.13,34.7619]
[1743684366078,0.063,114.14,114.13,84.91724154]
[1743684366275,0.063,114.14,114.13,34.7619]
[1743684366472,0.063,114.14,114.13,84.91724154]
[1743684366883,0.063,114.14,114.09,30.6772]
[1743684367290,0.063,114.14,114.1,50.15534154]
[1743684367623,0.063,114.14,114.13,50.15534154]
[1743684367911,0.063,114.14,114.12,26.0]
[1743684368090,0.063,114.14,114.11,50.15534154]
[1743684368289,0.063,114.14,114.09,30.6772]
[1743684368486,0.063,114.14,114.13,50.15534154]
[1743684368701,0.063,114.14,114.13,8.7619]
[1743684369007,0.063,114.14,114.13,84.91724154]
[1743684369294,0.063,114.14,114.12,8.7625]
[1743684369472,50.21834154,114.14,114.1,8.7642]
[1743684369675,50.21834154,114.14,114.1,58.91954154]
[1743684369870,0.063,114.14,114.11,50.15534154]
[1743684370084,0.063,114.14,114.1,58.91954154]
[1743684370283,50.21834154,114.14,114.1,8.7642]
[1743684370483,50.15534154,114.13,114.09,8.7647]
[1743684370713,0.063,114.14,114.09,50.15534154]
[1743684370994,0.063,114.14,114.1,50.15534154]
[1743684371204,0.063,114.14,114.11,50.15534154]
[1743684371777,0.063,114.14,114.12,50.15534154]
[1743684371979,0.063,114.14,114.11,26.0]
[1743684372301,50.15534154,114.13,114.08,30.6801]
[1743684372473,0.063,114.14,114.08,58.92104154]
[1743684372674,50.15534154,114.13,114.08,58.92104154]
[1743684372895,0.063,114.14,114.09,50.15534154]
[1743684373099,50.15534154,114.11,114.06,50.15534154]
[1743684373304,50.15534154,114.09,114.06,8.7673]
[1743684373598,50.15534154,114.12,114.02,8.7703]
[1743684373599,50.15534154,114.07,114.02,8.7703]
[1743684373895,50.15534154,114.07,114.0,50.15534154]
[1743684373896,50.15534154,114.05,114.01,8.7708]
[1743684374098,0.42648471,114.11,114.0,8.7715]
[1743684374099,50.15534154,114.03,114.0,8.7715]
[1743684374399,50.15534154,114.06,113.97,1.9928]
[1743684374400,50.15534154,114.01,113.97,0.03]
[1743684374592,50.15534154,113.99,113.97,0.03]
[1743684374992,27.41814886,114.05,113.97,0.03]
[1743684375193,50.15534154,114.01,113.97,0.03]
[1743684375387,8.7685,114.05,113.97,0.03]
[1743684375591,50.15534154,114.07,114.02,50.15534154]
[1743684375792,0.14216157,114.1,113.97,0.31432314]
[1743684375993,50.15534154,114.03,113.97,0.17216157]
[1743684376193,50.15534154,114.03,113.99,26.0]
[1743684376397,50.15534154,114.04,113.99,50.15534154]
[1743684376597,18.64964886,114.11,114.01,50.15534154]
[1743684376805,50.15534154,114.06,114.02,8.7703]
[1743684377494,50.15534154,114.07,114.02,58.92564154]
[1743684377699,50.15534154,114.07,114.02,80.85154154]
[1743684378212,50.15534154,114.08,114.03,50.15534154]
[1743684378593,0.42648471,114.11,114.02,8.7703]
[1743684378793,8.7642,114.1,114.01,50.15534154]
[1743684378989,50.15534154,114.06,114.01,50.15534154]
[1743684379384,50.15534154,114.03,113.99,8.7726]
[1743684379583,50.15534154,114.0,113.97,0.03]
[1743684380001,50.15534154,114.0,113.97,8.8039]
[1743684380195,18.933972,114.05,113.97,0.03]
[1743684380196,50.15534154,113.98,113.97,0.03]
[1743684380399,18.933972,114.05,113.97,30.7397]
[1743684380400,50.15534154,114.01,113.97,30.7397]
[1743684380904,50.15534154,114.0,113.97,30.7397]
[1743684381093,50.15534154,113.98,113.97,0.03]
[1743684381595,68.8049904,113.98,113.97,0.03]
[1743684382604,68.8049904,113.98,113.9,8.7794]
[1743684382605,18.64964886,113.97,113.9,8.7794]
[1743684382808,50.15534154,113.91,113.88,336.8208]
[1743684382999,50.15534154,113.94,113.85,0.03]
[1743684383000,50.15534154,113.89,113.85,0.03]
[1743684383194,8.7773,113.93,113.86,8.7824]
[1743684383406,50.15534154,113.89,113.86,8.7824]
[1743684383589,50.15534154,113.87,113.85,8.8132]
[1743684383795,27.42694886,113.93,113.85,8.8132]
[1743684383796,50.15534154,113.86,113.85,0.03]
[1743684385136,58.93804154,113.86,113.85,0.03]
[1743684385287,77.5876904,113.86,113.78,8.7887]
[1743684385493,50.15534154,113.8,113.78,8.7887]
[1743684385798,8.7827,113.86,113.76,8.7897]
[1743684385799,50.15534154,113.79,113.76,8.7897]
[1743684386023,58.93694154,113.88,113.77,50.15534154]
[1743684386195,18.64964886,113.87,113.77,50.15534154]
[1743684386391,50.15534154,113.88,113.8,50.15534154]
[1743684386611,50.15534154,113.85,113.8,50.15534154]